[Event "*** Titled Tuesday Blitz"]
[Site "Chess.com"]
[Date "2021.03.30"]
[Round "2"]
[White "Pikachess999"]
[Black "Goryachkina"]
[Result "0-1"]
[WhiteElo "2349"]
[BlackElo "2633"]
[TimeControl "180+1"]
[EndTime "10:17:45 PDT"]
[Termination "Goryachkina won by resignation"]

1. e4 {[%clk 0:03:00.9]} 1... c5 {[%clk 0:02:59.6]} 2. a3 {[%clk 0:03:01]} 2...
e6 {[%clk 0:02:54]} 3. b4 {[%clk 0:03:01]} 3... d5 {[%clk 0:02:48]} 4. exd5
{[%clk 0:03:00.6]} 4... Qxd5 {[%clk 0:02:41.1]} 5. Nc3 {[%clk 0:02:55.4]} 5...
Qe5+ {[%clk 0:02:32.7]} 6. Be2 {[%clk 0:02:55.5]} 6... cxb4 {[%clk 0:02:32.1]}
7. axb4 {[%clk 0:02:56.4]} 7... Bxb4 {[%clk 0:02:31]} 8. Nf3 {[%clk 0:02:56.9]}
8... Qc7 {[%clk 0:02:09.5]} 9. Nb5 {[%clk 0:02:55.1]} 9... Qe7 {[%clk
0:02:02.7]} 10. c3 {[%clk 0:02:53.9]} 10... Bd6 {[%clk 0:01:53.6]} 11. Nxd6+
{[%clk 0:02:52.1]} 11... Qxd6 {[%clk 0:01:53.6]} 12. Ba3 {[%clk 0:02:53]} 12...
Qc7 {[%clk 0:01:53]} 13. Qa4+ {[%clk 0:02:40.2]} 13... Nc6 {[%clk 0:01:47.7]}
14. Qg4 {[%clk 0:02:40.1]} 14... f5 {[%clk 0:01:40.1]} 15. Qh5+ {[%clk
0:02:31.8]} 15... Qf7 {[%clk 0:01:35]} 16. Qh4 {[%clk 0:02:30.8]} 16... Qf6
{[%clk 0:01:10.1]} 17. Qc4 {[%clk 0:02:14.2]} 17... Nge7 {[%clk 0:01:07.8]} 18.
d4 {[%clk 0:02:09.1]} 18... O-O {[%clk 0:01:02.5]} 19. O-O {[%clk 0:02:09.3]}
19... Rd8 {[%clk 0:00:57]} 20. Ne5 {[%clk 0:02:06.9]} 20... Nxe5 {[%clk
0:00:47.9]} 21. dxe5 {[%clk 0:02:07.8]} 21... Qf7 {[%clk 0:00:48.1]} 22. Bf3
{[%clk 0:01:30.1]} 22... Nc6 {[%clk 0:00:47.7]} 23. Bd6 {[%clk 0:01:26.9]} 23...
Bd7 {[%clk 0:00:42]} 24. Rfb1 {[%clk 0:01:24.7]} 24... Rac8 {[%clk 0:00:40.3]}
25. Qe2 {[%clk 0:01:17.3]} 25... b6 {[%clk 0:00:38.3]} 26. h3 {[%clk 0:01:14.1]}
26... Be8 {[%clk 0:00:37.5]} 27. Ra3 {[%clk 0:01:05]} 27... Na5 {[%clk
0:00:36.6]} 28. Rb4 {[%clk 0:00:50]} 28... Bc6 {[%clk 0:00:33.8]} 29. Bh5 {[%clk
0:00:45.2]} 29... g6 {[%clk 0:00:34.1]} 30. Bf3 {[%clk 0:00:45.7]} 30... Bxf3
{[%clk 0:00:34.1]} 31. Qxf3 {[%clk 0:00:46.6]} 31... Nc4 {[%clk 0:00:33.7]} 32.
Rxc4 {[%clk 0:00:14.3]} 32... Rxc4 {[%clk 0:00:34.6]} 33. Qd3 {[%clk 0:00:14.4]}
33... Rc6 {[%clk 0:00:30.4]} 34. Qa6 {[%clk 0:00:12.6]} 34... Rdc8 {[%clk
0:00:25.6]} 35. Qxa7 {[%clk 0:00:10.7]} 35... Qxa7 {[%clk 0:00:24.9]} 36. Rxa7
{[%clk 0:00:11.6]} 36... Rxc3 {[%clk 0:00:24.2]} 37. Re7 {[%clk 0:00:11.3]}
37... b5 {[%clk 0:00:19.8]} 38. Rxe6 {[%clk 0:00:11.7]} 38... Rc1+ {[%clk
0:00:19.8]} 39. Kh2 {[%clk 0:00:11.9]} 39... R1c6 {[%clk 0:00:18.2]} 40. Re7
{[%clk 0:00:11.7]} 40... Rb6 {[%clk 0:00:18.3]} 41. Rd7 {[%clk 0:00:10]} 41...
b4 {[%clk 0:00:17.6]} 42. e6 {[%clk 0:00:10.5]} 42... b3 {[%clk 0:00:15.4]} 43.
e7 {[%clk 0:00:10.7]} 43... Re8 {[%clk 0:00:15.4]} 44. Rd8 {[%clk 0:00:03.1]}
44... Kf7 {[%clk 0:00:15.7]} 45. Rxe8 {[%clk 0:00:03]} 45... Kxe8 {[%clk
0:00:16]} 0-1

[Event "*** Titled Tuesday Blitz"]
[Site "Chess.com"]
[Date "2021.03.30"]
[Round "2"]
[White "aunqa"]
[Black "rynos0411"]
[Result "0-1"]
[WhiteElo "2078"]
[BlackElo "2401"]
[TimeControl "180+1"]
[EndTime "10:17:45 PDT"]
[Termination "rynos0411 won by resignation"]

1. e4 {[%clk 0:03:00.9]} 1... c6 {[%clk 0:02:59.1]} 2. d4 {[%clk 0:03:00.2]}
2... d5 {[%clk 0:02:59.6]} 3. exd5 {[%clk 0:03:01.1]} 3... cxd5 {[%clk
0:02:59.7]} 4. c4 {[%clk 0:03:02]} 4... Nf6 {[%clk 0:02:58.3]} 5. Nc3 {[%clk
0:03:01.6]} 5... Nc6 {[%clk 0:02:58.7]} 6. Bg5 {[%clk 0:03:01.3]} 6... h6 {[%clk
0:02:57.3]} 7. Bxf6 {[%clk 0:03:00.7]} 7... exf6 {[%clk 0:02:56.8]} 8. cxd5
{[%clk 0:03:00.1]} 8... Ne7 {[%clk 0:02:55.7]} 9. Qb3 {[%clk 0:02:58.6]} 9...
Nf5 {[%clk 0:02:52.3]} 10. O-O-O {[%clk 0:02:56.2]} 10... Bd6 {[%clk 0:02:51]}
11. Nf3 {[%clk 0:02:36.3]} 11... O-O {[%clk 0:02:34.5]} 12. Bd3 {[%clk
0:02:34.7]} 12... a6 {[%clk 0:02:28.4]} 13. Kb1 {[%clk 0:02:25.2]} 13... b5
{[%clk 0:02:26.8]} 14. Ne4 {[%clk 0:02:13.6]} 14... Bb7 {[%clk 0:02:23]} 15. Nc5
{[%clk 0:01:43.8]} 15... Bc8 {[%clk 0:02:21.2]} 16. Rhe1 {[%clk 0:01:40]} 16...
Nxd4 {[%clk 0:02:04.1]} 17. Nxd4 {[%clk 0:01:39.3]} 17... Bxc5 {[%clk
0:02:04.3]} 18. Nf5 {[%clk 0:01:34.1]} 18... Bxf5 {[%clk 0:02:00.9]} 19. Bxf5
{[%clk 0:01:33.6]} 19... Qd6 {[%clk 0:02:00.2]} 20. Qf3 {[%clk 0:01:27]} 20...
Rad8 {[%clk 0:01:56]} 21. Re2 {[%clk 0:01:25.2]} 21... Rfe8 {[%clk 0:01:54.2]}
22. Red2 {[%clk 0:01:18.3]} 22... Re5 {[%clk 0:01:52.9]} 23. g4 {[%clk
0:01:17.4]} 23... g6 {[%clk 0:01:50.6]} 24. Bc2 {[%clk 0:01:16.6]} 24... Kg7
{[%clk 0:01:51]} 25. h4 {[%clk 0:01:16.3]} 25... h5 {[%clk 0:01:45.8]} 26. Bb3
{[%clk 0:00:46.8]} 26... hxg4 {[%clk 0:01:36.8]} 27. Qxg4 {[%clk 0:00:45.7]}
27... Rf5 {[%clk 0:01:37.2]} 28. f3 {[%clk 0:00:39.5]} 28... Qe5 {[%clk
0:01:27.5]} 29. Rg2 {[%clk 0:00:35.9]} 29... Rf4 {[%clk 0:01:23.6]} 30. Qg3
{[%clk 0:00:34.4]} 30... Qe3 {[%clk 0:00:55.8]} 31. Rc1 {[%clk 0:00:16.4]} 31...
Bd6 {[%clk 0:00:51.9]} 32. Qf2 {[%clk 0:00:12.9]} 32... Qd3+ {[%clk 0:00:25.1]}
33. Ka1 {[%clk 0:00:08.5]} 33... Rxf3 {[%clk 0:00:23.1]} 34. Qg1 {[%clk
0:00:08.5]} 34... Be5 {[%clk 0:00:20.9]} 35. Bc2 {[%clk 0:00:08.1]} 35... Qd4
{[%clk 0:00:18.9]} 36. Rb1 {[%clk 0:00:07.7]} 36... Qxg1 {[%clk 0:00:16.2]} 37.
Rbxg1 {[%clk 0:00:07.5]} 37... Rh3 {[%clk 0:00:16.4]} 38. h5 {[%clk 0:00:07.2]}
38... Rxh5 {[%clk 0:00:16.2]} 39. a3 {[%clk 0:00:06.7]} 39... Rh2 {[%clk
0:00:14]} 40. Rxh2 {[%clk 0:00:06.3]} 40... Bxh2 {[%clk 0:00:14.9]} 41. Rd1
{[%clk 0:00:06.5]} 41... Be5 {[%clk 0:00:15.4]} 42. Ka2 {[%clk 0:00:05.8]} 42...
f5 {[%clk 0:00:15.8]} 43. Kb3 {[%clk 0:00:04.5]} 43... a5 {[%clk 0:00:15.4]} 44.
Bd3 {[%clk 0:00:03.2]} 44... Rxd5 {[%clk 0:00:15.1]} 0-1

[Event "*** Titled Tuesday Blitz"]
[Site "Chess.com"]
[Date "2021.03.30"]
[Round "2"]
[White "Duhless"]
[Black "GMRafpig"]
[Result "1-0"]
[WhiteElo "3052"]
[BlackElo "2604"]
[TimeControl "180+1"]
[EndTime "10:17:47 PDT"]
[Termination "Duhless won on time"]

1. d4 {[%clk 0:03:00.9]} 1... Nf6 {[%clk 0:02:58.6]} 2. c4 {[%clk 0:03:00.5]}
2... e6 {[%clk 0:02:58.9]} 3. Nf3 {[%clk 0:02:59.7]} 3... d5 {[%clk 0:02:56.6]}
4. g3 {[%clk 0:02:59.9]} 4... Bb4+ {[%clk 0:02:54.6]} 5. Nbd2 {[%clk 0:02:59.3]}
5... O-O {[%clk 0:02:52.8]} 6. Bg2 {[%clk 0:02:59.6]} 6... b6 {[%clk 0:02:52.7]}
7. O-O {[%clk 0:02:59.2]} 7... Bb7 {[%clk 0:02:53]} 8. b3 {[%clk 0:02:57.8]}
8... Be7 {[%clk 0:02:51.1]} 9. Bb2 {[%clk 0:02:56.1]} 9... c5 {[%clk 0:02:49.7]}
10. Ne5 {[%clk 0:02:51.8]} 10... cxd4 {[%clk 0:02:39.5]} 11. Bxd4 {[%clk
0:02:50.6]} 11... Nc6 {[%clk 0:02:32.3]} 12. Nxc6 {[%clk 0:02:45.6]} 12... Bxc6
{[%clk 0:02:33.2]} 13. cxd5 {[%clk 0:02:34.8]} 13... Bxd5 {[%clk 0:02:25]} 14.
e4 {[%clk 0:02:31]} 14... Bb7 {[%clk 0:02:22.5]} 15. e5 {[%clk 0:02:30.6]} 15...
Nd5 {[%clk 0:01:37.6]} 16. Ne4 {[%clk 0:02:30]} 16... Rc8 {[%clk 0:01:29.8]} 17.
Qg4 {[%clk 0:02:25.8]} 17... Kh8 {[%clk 0:01:16.6]} 18. Rfd1 {[%clk 0:02:11.5]}
18... Qe8 {[%clk 0:01:03.9]} 19. Nf6 {[%clk 0:01:50.7]} 19... gxf6 {[%clk
0:00:42.5]} 20. exf6 {[%clk 0:01:51.6]} 20... Bxf6 {[%clk 0:00:37.7]} 21. Bxd5
{[%clk 0:01:48]} 21... Bxd4 {[%clk 0:00:36.1]} 22. Qxd4+ {[%clk 0:01:46.2]}
22... e5 {[%clk 0:00:36.4]} 23. Qh4 {[%clk 0:01:44.2]} 23... Bxd5 {[%clk
0:00:33.4]} 24. Qf6+ {[%clk 0:01:43.5]} 24... Kg8 {[%clk 0:00:32.1]} 25. Rxd5
{[%clk 0:01:40.7]} 25... Rc6 {[%clk 0:00:29.6]} 26. Qg5+ {[%clk 0:01:35.8]}
26... Kh8 {[%clk 0:00:27.1]} 27. Rxe5 {[%clk 0:01:31.3]} 27... Qd8 {[%clk
0:00:27.4]} 28. Qe3 {[%clk 0:01:26.1]} 28... Qf6 {[%clk 0:00:25.2]} 29. Re1
{[%clk 0:01:24.8]} 29... Rc2 {[%clk 0:00:21.1]} 30. a4 {[%clk 0:01:01.8]} 30...
Rc7 {[%clk 0:00:20.3]} 31. h4 {[%clk 0:00:57.2]} 31... Rd7 {[%clk 0:00:19.4]}
32. Kg2 {[%clk 0:00:43.5]} 32... h6 {[%clk 0:00:19]} 33. Re8 {[%clk 0:00:38.8]}
33... Rd8 {[%clk 0:00:18.3]} 34. Rxf8+ {[%clk 0:00:38.5]} 34... Rxf8 {[%clk
0:00:18.3]} 35. Qe4 {[%clk 0:00:36.5]} 35... Rd8 {[%clk 0:00:16.6]} 36. Re3
{[%clk 0:00:35.4]} 36... Qd6 {[%clk 0:00:16.4]} 37. Rf3 {[%clk 0:00:34.5]} 37...
Kg7 {[%clk 0:00:15.6]} 38. Qg4+ {[%clk 0:00:34.4]} 38... Qg6 {[%clk 0:00:15.6]}
39. Qf4 {[%clk 0:00:33.1]} 39... h5 {[%clk 0:00:14.7]} 40. Qe5+ {[%clk
0:00:32.2]} 40... Kg8 {[%clk 0:00:13.5]} 41. Rf5 {[%clk 0:00:30.9]} 41... Qc6+
{[%clk 0:00:13.5]} 42. Kh2 {[%clk 0:00:27.4]} 42... Rd1 {[%clk 0:00:05.5]} 43.
Qb8+ {[%clk 0:00:24.9]} 43... Kg7 {[%clk 0:00:03.8]} 44. Rg5+ {[%clk 0:00:24.8]}
1-0

[Event "*** Titled Tuesday Blitz"]
[Site "Chess.com"]
[Date "2021.03.30"]
[Round "2"]
[White "MaxLeto"]
[Black "GelmanAlexander"]
[Result "0-1"]
[WhiteElo "2363"]
[BlackElo "2647"]
[TimeControl "180+1"]
[EndTime "10:17:47 PDT"]
[Termination "GelmanAlexander won by resignation"]

1. g4 {[%clk 0:03:00.9]} 1... d5 {[%clk 0:02:52.3]} 2. Bg2 {[%clk 0:03:00.8]}
2... Bxg4 {[%clk 0:02:37.5]} 3. c4 {[%clk 0:03:00]} 3... dxc4 {[%clk 0:02:25.8]}
4. Bxb7 {[%clk 0:02:58.8]} 4... Nd7 {[%clk 0:02:26]} 5. Bxa8 {[%clk 0:02:52.6]}
5... Qxa8 {[%clk 0:02:26.3]} 6. f3 {[%clk 0:02:53.5]} 6... Bh5 {[%clk
0:02:15.6]} 7. Na3 {[%clk 0:02:51.8]} 7... Nb6 {[%clk 0:02:09.1]} 8. Nxc4 {[%clk
0:02:50.9]} 8... e6 {[%clk 0:01:54]} 9. Qb3 {[%clk 0:02:49.4]} 9... Nf6 {[%clk
0:01:46.4]} 10. Nxb6 {[%clk 0:02:30.5]} 10... axb6 {[%clk 0:01:46.1]} 11. Qb5+
{[%clk 0:02:31]} 11... c6 {[%clk 0:01:38.1]} 12. Qxb6 {[%clk 0:02:29.9]} 12...
Bd6 {[%clk 0:01:34.2]} 13. b3 {[%clk 0:01:53.8]} 13... O-O {[%clk 0:01:33.2]}
14. Bb2 {[%clk 0:01:53.3]} 14... Rb8 {[%clk 0:01:25.7]} 15. Qd4 {[%clk
0:01:49.1]} 15... Bf8 {[%clk 0:01:16.9]} 16. Nh3 {[%clk 0:01:44.8]} 16... c5
{[%clk 0:01:08.5]} 17. Qe5 {[%clk 0:01:20.8]} 17... Rd8 {[%clk 0:00:44.8]} 18.
Nf4 {[%clk 0:01:18]} 18... Bg6 {[%clk 0:00:38.8]} 19. h4 {[%clk 0:00:48.3]}
19... Bd6 {[%clk 0:00:13.1]} 20. Qe3 {[%clk 0:00:48.2]} 20... Qb8 {[%clk
0:00:09.5]} 21. Nxg6 {[%clk 0:00:40.8]} 21... Bg3+ {[%clk 0:00:09.8]} 22. Kd1
{[%clk 0:00:33.2]} 22... hxg6 {[%clk 0:00:10.7]} 23. Qxc5 {[%clk 0:00:31.5]}
23... Bf4 {[%clk 0:00:10.4]} 24. e3 {[%clk 0:00:29.9]} 24... Bd6 {[%clk
0:00:10.3]} 25. Qc4 {[%clk 0:00:28.5]} 25... Nd5 {[%clk 0:00:09.9]} 26. Ke2
{[%clk 0:00:28.2]} 26... Bf8 {[%clk 0:00:08.4]} 27. h5 {[%clk 0:00:28.1]} 27...
gxh5 {[%clk 0:00:05.5]} 28. Rxh5 {[%clk 0:00:27.2]} 28... Qg3 {[%clk 0:00:06.1]}
29. Qh4 {[%clk 0:00:17.9]} 29... Qg2+ {[%clk 0:00:04.5]} 30. Qf2 {[%clk
0:00:18.5]} 30... Nf4+ {[%clk 0:00:04.5]} 31. exf4 {[%clk 0:00:06.2]} 31...
Rxd2+ {[%clk 0:00:05.1]} 32. Kxd2 {[%clk 0:00:06.8]} 32... Qxf2+ {[%clk
0:00:06]} 33. Kc1 {[%clk 0:00:03.7]} 33... Qe3+ {[%clk 0:00:05]} 34. Kc2 {[%clk
0:00:03.8]} 34... Qe2+ {[%clk 0:00:04.9]} 35. Kc3 {[%clk 0:00:02]} 35... Qxf3+
{[%clk 0:00:05]} 36. Kc2 {[%clk 0:00:01.6]} 36... Qxh5 {[%clk 0:00:05.1]} 37.
Rd1 {[%clk 0:00:02.5]} 37... Qe2+ {[%clk 0:00:05]} 38. Rd2 {[%clk 0:00:02.9]}
38... Qe4+ {[%clk 0:00:05.7]} 39. Kc1 {[%clk 0:00:03.1]} 39... Qxf4 {[%clk
0:00:06]} 40. Kd1 {[%clk 0:00:03.1]} 40... Qf3+ {[%clk 0:00:06.2]} 41. Kc2
{[%clk 0:00:03.1]} 41... Bb4 {[%clk 0:00:06.8]} 42. Rd3 {[%clk 0:00:03.5]} 42...
Qe2+ {[%clk 0:00:06.6]} 0-1

[Event "*** Titled Tuesday Blitz"]
[Site "Chess.com"]
[Date "2021.03.30"]
[Round "2"]
[White "TigrVShlyape"]
[Black "MaevskiyNikolay"]
[Result "1-0"]
[WhiteElo "2796"]
[BlackElo "2528"]
[TimeControl "180+1"]
[EndTime "10:17:49 PDT"]
[Termination "TigrVShlyape won by resignation"]

1. d4 {[%clk 0:03:00.9]} 1... d5 {[%clk 0:03:00]} 2. Nf3 {[%clk 0:03:00.3]} 2...
Nc6 {[%clk 0:03:00.2]} 3. Bf4 {[%clk 0:02:59.6]} 3... Bg4 {[%clk 0:03:00.1]} 4.
Nbd2 {[%clk 0:02:58.8]} 4... e6 {[%clk 0:03:00.3]} 5. e3 {[%clk 0:02:56.6]} 5...
Bd6 {[%clk 0:03:00.4]} 6. Bg3 {[%clk 0:02:55.8]} 6... Nge7 {[%clk 0:02:57.2]} 7.
Bd3 {[%clk 0:02:52.1]} 7... a6 {[%clk 0:02:53.5]} 8. O-O {[%clk 0:02:48.7]} 8...
Bxg3 {[%clk 0:02:53.2]} 9. hxg3 {[%clk 0:02:48.4]} 9... Bf5 {[%clk 0:02:51.2]}
10. Bxf5 {[%clk 0:02:38.8]} 10... Nxf5 {[%clk 0:02:51.3]} 11. c4 {[%clk
0:02:38.5]} 11... O-O {[%clk 0:02:48.4]} 12. cxd5 {[%clk 0:02:33.9]} 12... exd5
{[%clk 0:02:46.8]} 13. Qb3 {[%clk 0:02:33.4]} 13... Rb8 {[%clk 0:02:43.6]} 14.
Rac1 {[%clk 0:02:29.7]} 14... Nce7 {[%clk 0:02:43.3]} 15. g4 {[%clk 0:02:11.8]}
15... Nd6 {[%clk 0:02:42.8]} 16. Ne5 {[%clk 0:02:10.8]} 16... c6 {[%clk
0:02:42.8]} 17. g3 {[%clk 0:01:48.4]} 17... Qc8 {[%clk 0:02:36]} 18. f3 {[%clk
0:01:44.6]} 18... Qe6 {[%clk 0:02:32.9]} 19. Rfe1 {[%clk 0:01:25.6]} 19... h6
{[%clk 0:01:58.5]} 20. e4 {[%clk 0:01:10.7]} 20... Qf6 {[%clk 0:01:41.5]} 21.
Qe3 {[%clk 0:00:59.1]} 21... Rfd8 {[%clk 0:01:38.9]} 22. Kg2 {[%clk 0:00:53.9]}
22... Qe6 {[%clk 0:01:33.7]} 23. Nb3 {[%clk 0:00:50.7]} 23... Nc4 {[%clk
0:01:27.8]} 24. Nxc4 {[%clk 0:00:49.6]} 24... dxc4 {[%clk 0:01:28.1]} 25. Nc5
{[%clk 0:00:48]} 25... Qd6 {[%clk 0:01:27.1]} 26. Rxc4 {[%clk 0:00:47.2]} 26...
b5 {[%clk 0:01:27.3]} 27. Rc2 {[%clk 0:00:43.8]} 27... Qxd4 {[%clk 0:01:27.3]}
28. Qxd4 {[%clk 0:00:41.6]} 28... Rxd4 {[%clk 0:01:27.1]} 29. Kf2 {[%clk
0:00:33.5]} 29... a5 {[%clk 0:01:26.1]} 30. Nb3 {[%clk 0:00:28.3]} 30... Ra4
{[%clk 0:01:21]} 31. a3 {[%clk 0:00:28.1]} 31... Rd8 {[%clk 0:01:21]} 32. Rec1
{[%clk 0:00:26]} 32... Kf8 {[%clk 0:01:18.9]} 33. Ke3 {[%clk 0:00:24.5]} 33...
Ke8 {[%clk 0:01:17.9]} 34. Rd2 {[%clk 0:00:23.8]} 34... Rxd2 {[%clk 0:01:16.7]}
35. Nxd2 {[%clk 0:00:24]} 35... b4 {[%clk 0:01:16]} 36. Nc4 {[%clk 0:00:24]}
36... bxa3 {[%clk 0:01:12]} 37. bxa3 {[%clk 0:00:24.2]} 37... c5 {[%clk
0:01:09.8]} 38. Kd3 {[%clk 0:00:21.4]} 38... Nc6 {[%clk 0:01:09.9]} 39. Rc3
{[%clk 0:00:18]} 39... Nd4 {[%clk 0:01:05.6]} 40. Nb6 {[%clk 0:00:17.2]} 40...
Nxf3 {[%clk 0:00:50.6]} 41. Nxa4 {[%clk 0:00:16.6]} 41... Ne5+ {[%clk
0:00:51.5]} 42. Ke2 {[%clk 0:00:16.7]} 42... Nxg4 {[%clk 0:00:51.9]} 43. Nxc5
{[%clk 0:00:16.2]} 43... Nf6 {[%clk 0:00:52.5]} 44. Kf3 {[%clk 0:00:15.7]} 44...
g5 {[%clk 0:00:51.1]} 45. Rd3 {[%clk 0:00:15.6]} 45... h5 {[%clk 0:00:50.6]} 46.
e5 {[%clk 0:00:15.9]} 46... Ng8 {[%clk 0:00:49.3]} 47. Ne4 {[%clk 0:00:15.2]}
47... Ne7 {[%clk 0:00:48.3]} 48. Nf6+ {[%clk 0:00:14.8]} 48... Kf8 {[%clk
0:00:48.8]} 49. Rd8+ {[%clk 0:00:14]} 49... Kg7 {[%clk 0:00:49.3]} 50. Re8
{[%clk 0:00:13.9]} 50... Nc6 {[%clk 0:00:48]} 51. Rg8+ {[%clk 0:00:13.5]} 51...
Kh6 {[%clk 0:00:48.2]} 52. Ke4 {[%clk 0:00:13.7]} 52... Ne7 {[%clk 0:00:48.2]}
53. Rh8+ {[%clk 0:00:12.4]} 53... Kg7 {[%clk 0:00:48.1]} 54. Rxh5 {[%clk
0:00:12.3]} 54... Kg6 {[%clk 0:00:47.6]} 55. g4 {[%clk 0:00:12.5]} 55... Nc6
{[%clk 0:00:45]} 56. Rh8 {[%clk 0:00:12.4]} 56... Ne7 {[%clk 0:00:45.2]} 57. Re8
{[%clk 0:00:12.1]} 57... Nc6 {[%clk 0:00:45]} 58. Kd5 {[%clk 0:00:12.3]} 58...
Na7 {[%clk 0:00:43.6]} 59. a4 {[%clk 0:00:12.7]} 59... Kh6 {[%clk 0:00:41.9]}
60. Kc5 {[%clk 0:00:12.8]} 60... Kg7 {[%clk 0:00:41.2]} 61. Kb6 {[%clk
0:00:12.8]} 1-0

[Event "*** Titled Tuesday Blitz"]
[Site "Chess.com"]
[Date "2021.03.30"]
[Round "2"]
[White "Grineva_Marianna"]
[Black "PerAsperaAdAstraCB"]
[Result "1-0"]
[WhiteElo "2283"]
[BlackElo "2455"]
[TimeControl "180+1"]
[EndTime "10:17:54 PDT"]
[Termination "Grineva_Marianna won on time"]

1. e4 {[%clk 0:03:00.9]} 1... c6 {[%clk 0:03:00.1]} 2. d4 {[%clk 0:02:59.7]}
2... d5 {[%clk 0:03:01]} 3. e5 {[%clk 0:03:00.2]} 3... c5 {[%clk 0:03:01.4]} 4.
dxc5 {[%clk 0:02:55.1]} 4... e6 {[%clk 0:03:01.5]} 5. a3 {[%clk 0:02:54.6]} 5...
Bxc5 {[%clk 0:03:01.8]} 6. Nf3 {[%clk 0:02:55]} 6... Ne7 {[%clk 0:03:01]} 7. b4
{[%clk 0:02:54.9]} 7... Bb6 {[%clk 0:03:00.6]} 8. Bd3 {[%clk 0:02:54.8]} 8... a5
{[%clk 0:03:01.1]} 9. c3 {[%clk 0:02:37.5]} 9... Ng6 {[%clk 0:02:58.1]} 10. O-O
{[%clk 0:02:35.4]} 10... Nc6 {[%clk 0:02:54.2]} 11. Bg5 {[%clk 0:02:30.9]} 11...
Qc7 {[%clk 0:02:52.4]} 12. Re1 {[%clk 0:02:26.1]} 12... Bd7 {[%clk 0:02:46.8]}
13. b5 {[%clk 0:02:18.4]} 13... Nce7 {[%clk 0:02:36.8]} 14. a4 {[%clk 0:02:05]}
14... O-O {[%clk 0:02:33.9]} 15. Qe2 {[%clk 0:01:57.6]} 15... Rac8 {[%clk
0:02:23.9]} 16. h4 {[%clk 0:01:51.8]} 16... h6 {[%clk 0:02:23.3]} 17. Be3 {[%clk
0:01:45.6]} 17... Bxe3 {[%clk 0:02:17.8]} 18. Qxe3 {[%clk 0:01:46.5]} 18... Qc5
{[%clk 0:02:15.5]} 19. Qd4 {[%clk 0:01:35]} 19... Qxd4 {[%clk 0:02:07.2]} 20.
cxd4 {[%clk 0:01:35.9]} 20... Nf4 {[%clk 0:02:06.8]} 21. Bf1 {[%clk 0:01:34.5]}
21... Nf5 {[%clk 0:01:59.1]} 22. Nbd2 {[%clk 0:01:33.5]} 22... h5 {[%clk
0:01:49.9]} 23. b6 {[%clk 0:01:31.2]} 23... Rc2 {[%clk 0:01:47.9]} 24. Nb3
{[%clk 0:01:30.4]} 24... Bc6 {[%clk 0:01:30.5]} 25. Nxa5 {[%clk 0:01:29.3]}
25... Ra8 {[%clk 0:01:24.7]} 26. Nxc6 {[%clk 0:01:29.1]} 26... Rxc6 {[%clk
0:01:25.1]} 27. a5 {[%clk 0:01:29.7]} 27... Ng6 {[%clk 0:01:21.6]} 28. g3 {[%clk
0:01:27.1]} 28... Nge7 {[%clk 0:01:21.7]} 29. Reb1 {[%clk 0:01:26.7]} 29... Rc3
{[%clk 0:01:17.6]} 30. Kg2 {[%clk 0:01:24.4]} 30... Nc6 {[%clk 0:01:17]} 31. a6
{[%clk 0:01:15.7]} 31... bxa6 {[%clk 0:01:16.9]} 32. Rxa6 {[%clk 0:01:15.3]}
32... Rxa6 {[%clk 0:00:56.2]} 33. Bxa6 {[%clk 0:01:16.2]} 33... Ra3 {[%clk
0:00:53.6]} 34. Bb5 {[%clk 0:01:00.4]} 34... Na5 {[%clk 0:00:53.5]} 35. Bd7
{[%clk 0:00:51.6]} 35... Nb7 {[%clk 0:00:44.2]} 36. Bc8 {[%clk 0:00:50.4]} 36...
Na5 {[%clk 0:00:40.8]} 37. b7 {[%clk 0:00:49.8]} 37... Nxb7 {[%clk 0:00:40.7]}
38. Rxb7 {[%clk 0:00:49.1]} 38... Ra2 {[%clk 0:00:41.1]} 39. Rb8 {[%clk
0:00:47.1]} 39... Kh7 {[%clk 0:00:40.4]} 40. Ng5+ {[%clk 0:00:44.4]} 40... Kg6
{[%clk 0:00:40]} 41. Bd7 {[%clk 0:00:41.2]} 41... Ne3+ {[%clk 0:00:33.4]} 42.
Kf3 {[%clk 0:00:39.9]} 42... Nd1 {[%clk 0:00:31.5]} 43. Nh3 {[%clk 0:00:38]}
43... Ra3+ {[%clk 0:00:28.5]} 44. Kg2 {[%clk 0:00:37.1]} 44... Ra7 {[%clk
0:00:22.7]} 45. Be8 {[%clk 0:00:36.7]} 45... Nc3 {[%clk 0:00:21.2]} 46. Nf4+
{[%clk 0:00:36.4]} 46... Kf5 {[%clk 0:00:21.4]} 47. Rb3 {[%clk 0:00:32.6]} 47...
Ne4 {[%clk 0:00:19.4]} 48. Rf3 {[%clk 0:00:32.6]} 48... g5 {[%clk 0:00:17.4]}
49. Nxh5+ {[%clk 0:00:31.6]} 49... Kg6 {[%clk 0:00:17.6]} 50. Nf6 {[%clk
0:00:30.9]} 50... gxh4 {[%clk 0:00:14.9]} 51. gxh4 {[%clk 0:00:28.8]} 1-0